[Event "*** Titled Tuesday Blitz"]
[Site "Chess.com"]
[Date "2021.02.16"]
[Round "2"]
[White "Squirlolz"]
[Black "Rozum_Ivan"]
[Result "0-1"]
[WhiteElo "2487"]
[BlackElo "2744"]
[TimeControl "180+1"]
[EndTime "10:19:40 PST"]
[Termination "Rozum_Ivan won by checkmate"]

1. e4 {[%clk 0:03:00.9]} 1... g6 {[%clk 0:03:00.1]} 2. d4 {[%clk 0:03:00.6]}
2... Bg7 {[%clk 0:03:00.4]} 3. Nc3 {[%clk 0:03:01.5]} 3... d6 {[%clk 0:03:00.8]}
4. Be3 {[%clk 0:03:01.8]} 4... a6 {[%clk 0:02:58.5]} 5. f3 {[%clk 0:02:58.7]}
5... b5 {[%clk 0:02:58.5]} 6. h4 {[%clk 0:02:58.8]} 6... h5 {[%clk 0:02:54.8]}
7. Qd2 {[%clk 0:02:58.4]} 7... Nd7 {[%clk 0:02:52.9]} 8. Nh3 {[%clk 0:02:58.6]}
8... Bb7 {[%clk 0:02:46.1]} 9. Ng5 {[%clk 0:02:56]} 9... Nb6 {[%clk 0:02:41.6]}
10. O-O-O {[%clk 0:02:49.1]} 10... e6 {[%clk 0:02:29.7]} 11. Kb1 {[%clk
0:02:40.9]} 11... b4 {[%clk 0:02:27.2]} 12. Ne2 {[%clk 0:02:41]} 12... Nc4
{[%clk 0:02:27.4]} 13. Qc1 {[%clk 0:02:41.6]} 13... Nxe3 {[%clk 0:02:24.9]} 14.
Qxe3 {[%clk 0:02:42.5]} 14... Nf6 {[%clk 0:02:12.6]} 15. Nf4 {[%clk 0:02:42.6]}
15... Qd7 {[%clk 0:02:04.9]} 16. Be2 {[%clk 0:01:59.3]} 16... a5 {[%clk
0:02:02.8]} 17. g4 {[%clk 0:01:52.8]} 17... hxg4 {[%clk 0:01:51.6]} 18. fxg4
{[%clk 0:01:53.7]} 18... O-O-O {[%clk 0:01:43.8]} 19. Bf3 {[%clk 0:01:38.8]}
19... Rhe8 {[%clk 0:01:15.7]} 20. e5 {[%clk 0:01:21.5]} 20... Nd5 {[%clk
0:01:14.4]} 21. Bxd5 {[%clk 0:01:15.4]} 21... exd5 {[%clk 0:01:15.3]} 22. e6
{[%clk 0:01:15]} 22... fxe6 {[%clk 0:01:02.4]} 23. Nfxe6 {[%clk 0:01:10.2]}
23... Bh6 {[%clk 0:00:55.1]} 24. Qh3 {[%clk 0:00:18]} 24... Rxe6 {[%clk
0:00:53.4]} 25. Nxe6 {[%clk 0:00:18.9]} 25... Qxe6 {[%clk 0:00:54.3]} 26. g5
{[%clk 0:00:19.8]} 26... Qxh3 {[%clk 0:00:53.2]} 27. Rxh3 {[%clk 0:00:20.7]}
27... Bg7 {[%clk 0:00:50.7]} 28. Re3 {[%clk 0:00:09.4]} 28... Rh8 {[%clk
0:00:25]} 29. Re7 {[%clk 0:00:09.5]} 29... Bf8 {[%clk 0:00:20.3]} 30. Rf7 {[%clk
0:00:09.9]} 30... Ba6 {[%clk 0:00:08.4]} 31. Re1 {[%clk 0:00:08.2]} 31... Kd8
{[%clk 0:00:08.1]} 32. a3 {[%clk 0:00:06.1]} 32... Bb5 {[%clk 0:00:08.2]} 33.
axb4 {[%clk 0:00:05.8]} 33... axb4 {[%clk 0:00:09.1]} 34. Re3 {[%clk 0:00:05.5]}
34... Be8 {[%clk 0:00:08.7]} 35. Rf6 {[%clk 0:00:05.6]} 35... Be7 {[%clk
0:00:09.1]} 36. Rf4 {[%clk 0:00:05.8]} 36... Rh7 {[%clk 0:00:09.5]} 37. c3
{[%clk 0:00:05.8]} 37... Bd7 {[%clk 0:00:09.7]} 38. cxb4 {[%clk 0:00:05.2]}
38... Bf5+ {[%clk 0:00:10.3]} 39. Ka2 {[%clk 0:00:05.7]} 39... Kd7 {[%clk
0:00:10.9]} 40. Kb3 {[%clk 0:00:06.3]} 40... c6 {[%clk 0:00:11.2]} 41. b5 {[%clk
0:00:05.6]} 41... cxb5 {[%clk 0:00:10.8]} 42. Kb4 {[%clk 0:00:06.2]} 42... Rh8
{[%clk 0:00:10.4]} 43. Ra3 {[%clk 0:00:04.4]} 43... Rc8 {[%clk 0:00:08.4]} 44.
Ra7+ {[%clk 0:00:04.5]} 44... Ke8 {[%clk 0:00:08.8]} 45. Rb7 {[%clk 0:00:04.1]}
45... Rc4+ {[%clk 0:00:08.1]} 46. Kxb5 {[%clk 0:00:03.9]} 46... Bd7+ {[%clk
0:00:07.8]} 47. Ka5 {[%clk 0:00:04]} 47... Bd8+ {[%clk 0:00:07.2]} 48. Ka6
{[%clk 0:00:03.6]} 48... Ra4# {[%clk 0:00:07.5]} 0-1

[Event "*** Titled Tuesday Blitz"]
[Site "Chess.com"]
[Date "2021.02.16"]
[Round "2"]
[White "wnstop"]
[Black "xberli"]
[Result "1/2-1/2"]
[WhiteElo "2708"]
[BlackElo "2489"]
[TimeControl "180+1"]
[EndTime "10:19:41 PST"]
[Termination "Game drawn by repetition"]

1. e4 {[%clk 0:03:00.9]} 1... e5 {[%clk 0:02:59.4]} 2. Nf3 {[%clk 0:02:57.5]}
2... Nc6 {[%clk 0:02:59.4]} 3. Bb5 {[%clk 0:02:57.3]} 3... a6 {[%clk 0:02:59.7]}
4. Ba4 {[%clk 0:02:57.5]} 4... Nf6 {[%clk 0:02:59.9]} 5. O-O {[%clk 0:02:57.3]}
5... Be7 {[%clk 0:02:59.9]} 6. Re1 {[%clk 0:02:57.3]} 6... b5 {[%clk 0:03:00]}
7. Bb3 {[%clk 0:02:57.2]} 7... O-O {[%clk 0:03:00.9]} 8. h3 {[%clk 0:02:44.4]}
8... d6 {[%clk 0:02:54.6]} 9. c3 {[%clk 0:02:43.5]} 9... Bb7 {[%clk 0:02:51.7]}
10. d4 {[%clk 0:02:40.7]} 10... Re8 {[%clk 0:02:42.8]} 11. d5 {[%clk 0:02:35.8]}
11... Nb8 {[%clk 0:02:38.6]} 12. Nbd2 {[%clk 0:02:25.8]} 12... Bf8 {[%clk
0:02:35.2]} 13. Nf1 {[%clk 0:02:25.1]} 13... c6 {[%clk 0:02:33.9]} 14. dxc6
{[%clk 0:02:24.7]} 14... Bxc6 {[%clk 0:02:31.1]} 15. Bg5 {[%clk 0:02:24.2]}
15... Nbd7 {[%clk 0:02:30.5]} 16. N3h2 {[%clk 0:02:12.9]} 16... h6 {[%clk
0:02:26.6]} 17. Bxf6 {[%clk 0:02:12.6]} 17... Nxf6 {[%clk 0:02:27.5]} 18. Qf3
{[%clk 0:02:01.3]} 18... d5 {[%clk 0:02:13.5]} 19. exd5 {[%clk 0:01:59.6]} 19...
Bxd5 {[%clk 0:02:13.7]} 20. Bxd5 {[%clk 0:01:59.1]} 20... Qxd5 {[%clk
0:02:14.6]} 21. Qxd5 {[%clk 0:01:53.9]} 21... Nxd5 {[%clk 0:02:15.5]} 22. Ng4
{[%clk 0:01:49]} 22... f6 {[%clk 0:02:13]} 23. Red1 {[%clk 0:01:36.9]} 23...
Rad8 {[%clk 0:02:10.2]} 24. Nge3 {[%clk 0:01:36.6]} 24... Nf4 {[%clk 0:02:06.9]}
25. a4 {[%clk 0:01:26.2]} 25... b4 {[%clk 0:02:03.6]} 26. h4 {[%clk 0:01:21.7]}
26... Kf7 {[%clk 0:01:59.8]} 27. Ng3 {[%clk 0:00:41.8]} 27... Nd3 {[%clk
0:01:46.1]} 28. Rab1 {[%clk 0:00:38.6]} 28... Ke6 {[%clk 0:01:38.4]} 29. Kf1
{[%clk 0:00:37.2]} 29... b3 {[%clk 0:01:33.5]} 30. Ne4 {[%clk 0:00:26.6]} 30...
Nc5 {[%clk 0:01:28]} 31. Nxc5+ {[%clk 0:00:25]} 31... Bxc5 {[%clk 0:01:28.9]}
32. Nc4 {[%clk 0:00:25.1]} 32... h5 {[%clk 0:01:23]} 33. Ke2 {[%clk 0:00:24.6]}
33... Rb8 {[%clk 0:01:03.4]} 34. Rd2 {[%clk 0:00:22.6]} 34... Rec8 {[%clk
0:01:03.2]} 35. Ne3 {[%clk 0:00:16.3]} 35... Bxe3 {[%clk 0:00:58.6]} 36. Kxe3
{[%clk 0:00:16.5]} 36... Rc4 {[%clk 0:00:58.9]} 37. Rbd1 {[%clk 0:00:09.9]}
37... Rxa4 {[%clk 0:00:49.8]} 38. Rd6+ {[%clk 0:00:10.4]} 38... Kf5 {[%clk
0:00:49.5]} 39. g3 {[%clk 0:00:10.4]} 39... Rb7 {[%clk 0:00:43]} 40. R1d2 {[%clk
0:00:10.2]} 40... Rc7 {[%clk 0:00:42.9]} 41. Rb6 {[%clk 0:00:06]} 41... Rcc4
{[%clk 0:00:41.2]} 42. Rxb3 {[%clk 0:00:05.9]} 42... g5 {[%clk 0:00:38.2]} 43.
hxg5 {[%clk 0:00:06]} 43... Kxg5 {[%clk 0:00:38.4]} 44. Rb7 {[%clk 0:00:05.8]}
44... h4 {[%clk 0:00:37.6]} 45. gxh4+ {[%clk 0:00:04.7]} 45... Rxh4 {[%clk
0:00:38.5]} 46. Rg7+ {[%clk 0:00:04.5]} 46... Kf5 {[%clk 0:00:38.5]} 47. Rd1
{[%clk 0:00:04.7]} 47... Rh3+ {[%clk 0:00:34.8]} 48. Ke2 {[%clk 0:00:05.2]}
48... Re4+ {[%clk 0:00:33.8]} 49. Kd2 {[%clk 0:00:04.6]} 49... Rf4 {[%clk
0:00:33.7]} 50. Rg2 {[%clk 0:00:03.1]} 50... Rh7 {[%clk 0:00:32.1]} 51. Ke2
{[%clk 0:00:03.5]} 51... Rb7 {[%clk 0:00:31.3]} 52. Rd2 {[%clk 0:00:03.6]} 52...
a5 {[%clk 0:00:31.7]} 53. Rh2 {[%clk 0:00:03.8]} 53... a4 {[%clk 0:00:31.4]} 54.
Rh6 {[%clk 0:00:04]} 54... Rb6 {[%clk 0:00:30.4]} 55. Ke3 {[%clk 0:00:04.1]}
55... Re4+ {[%clk 0:00:30.2]} 56. Kf3 {[%clk 0:00:04.6]} 56... Rf4+ {[%clk
0:00:30.3]} 57. Ke3 {[%clk 0:00:05.1]} 57... Ke6 {[%clk 0:00:30.1]} 58. Rh8
{[%clk 0:00:05]} 58... Kf5 {[%clk 0:00:29.9]} 59. Rh6 {[%clk 0:00:04.9]} 1/2-1/2

[Event "*** Titled Tuesday Blitz"]
[Site "Chess.com"]
[Date "2021.02.16"]
[Round "2"]
[White "picturesquecheck"]
[Black "AlexPapasimakopoulos"]
[Result "0-1"]
[WhiteElo "2248"]
[BlackElo "2619"]
[TimeControl "180+1"]
[EndTime "10:19:41 PST"]
[Termination "AlexPapasimakopoulos won by resignation"]

1. e4 {[%clk 0:03:00.9]} 1... e6 {[%clk 0:02:58.8]} 2. d4 {[%clk 0:03:00.4]}
2... d5 {[%clk 0:02:58.4]} 3. Nd2 {[%clk 0:03:01.3]} 3... Nf6 {[%clk 0:02:57.8]}
4. e5 {[%clk 0:03:00.9]} 4... Nfd7 {[%clk 0:02:57.8]} 5. Bd3 {[%clk 0:03:01.5]}
5... c5 {[%clk 0:02:57.6]} 6. c3 {[%clk 0:03:02.4]} 6... Nc6 {[%clk 0:02:57.7]}
7. Ne2 {[%clk 0:03:02.6]} 7... cxd4 {[%clk 0:02:56]} 8. cxd4 {[%clk 0:03:03.5]}
8... f6 {[%clk 0:02:53]} 9. exf6 {[%clk 0:03:04.4]} 9... Nxf6 {[%clk 0:02:53.7]}
10. Nf3 {[%clk 0:03:03.3]} 10... Bd6 {[%clk 0:02:54.2]} 11. O-O {[%clk
0:03:03.4]} 11... Qc7 {[%clk 0:02:54.4]} 12. Bg5 {[%clk 0:03:03.6]} 12... O-O
{[%clk 0:02:53.7]} 13. Bh4 {[%clk 0:03:04.1]} 13... Nh5 {[%clk 0:02:53.7]} 14.
Qc2 {[%clk 0:03:03.1]} 14... h6 {[%clk 0:02:54.2]} 15. Bh7+ {[%clk 0:03:01.8]}
15... Kh8 {[%clk 0:02:54.9]} 16. Bg6 {[%clk 0:03:02.7]} 16... Rxf3 {[%clk
0:02:54.9]} 17. Bxh5 {[%clk 0:03:02.2]} 17... Bxh2+ {[%clk 0:02:55.6]} 18. Kh1
{[%clk 0:03:02.1]} 18... Rf5 {[%clk 0:02:56.2]} 19. Bg6 {[%clk 0:02:57.9]} 19...
Bd6 {[%clk 0:02:56.1]} 20. Bxf5 {[%clk 0:02:57]} 20... exf5 {[%clk 0:02:57]} 21.
Rae1 {[%clk 0:02:53.1]} 21... Qf7 {[%clk 0:02:56.8]} 22. Bg3 {[%clk 0:02:45.4]}
22... Bb4 {[%clk 0:02:56.7]} 23. Nc3 {[%clk 0:02:29.8]} 23... f4 {[%clk
0:02:53.3]} 24. Bxf4 {[%clk 0:02:25.9]} 24... Nxd4 {[%clk 0:02:40.8]} 25. Qd2
{[%clk 0:02:21.5]} 25... Ne6 {[%clk 0:02:30.2]} 26. Bh2 {[%clk 0:02:11.4]} 26...
d4 {[%clk 0:02:29.7]} 27. Be5 {[%clk 0:01:54.9]} 27... dxc3 {[%clk 0:02:28.5]}
28. bxc3 {[%clk 0:01:53.6]} 28... Qh5+ {[%clk 0:02:21.5]} 29. Kg1 {[%clk
0:01:52.3]} 29... Bc5 {[%clk 0:02:18.5]} 30. Qd5 {[%clk 0:01:31.6]} 30... Qg6
{[%clk 0:02:13.5]} 31. Bh2 {[%clk 0:01:13.9]} 31... Kh7 {[%clk 0:02:11.8]} 32.
Rxe6 {[%clk 0:01:08.9]} 32... Bxe6 {[%clk 0:02:07.1]} 33. Qxc5 {[%clk
0:01:08.9]} 33... Bxa2 {[%clk 0:02:07.8]} 34. Ra1 {[%clk 0:01:05.1]} 34... b6
{[%clk 0:01:50.2]} 35. Qe3 {[%clk 0:00:43.3]} 35... Bd5 {[%clk 0:01:31.2]} 36.
Bg3 {[%clk 0:00:40.7]} 36... a5 {[%clk 0:01:30.8]} 37. Qd4 {[%clk 0:00:39.5]}
37... Bb3 {[%clk 0:01:26.7]} 38. c4 {[%clk 0:00:37.6]} 38... Rc8 {[%clk
0:01:21.2]} 39. Rc1 {[%clk 0:00:29.7]} 39... a4 {[%clk 0:01:16.6]} 40. Bd6
{[%clk 0:00:26.6]} 40... Rc6 {[%clk 0:01:10.8]} 41. Ba3 {[%clk 0:00:24.5]} 41...
Qf5 {[%clk 0:01:09.6]} 42. c5 {[%clk 0:00:22.2]} 42... bxc5 {[%clk 0:01:02.6]}
43. Rxc5 {[%clk 0:00:22.1]} 43... Qb1+ {[%clk 0:01:00.6]} 44. Kh2 {[%clk
0:00:21.2]} 44... Rg6 {[%clk 0:01:00.6]} 45. Rc3 {[%clk 0:00:19.4]} 45... Qf1
{[%clk 0:00:56.1]} 46. Rg3 {[%clk 0:00:17.7]} 46... Rxg3 {[%clk 0:00:49.3]} 47.
fxg3 {[%clk 0:00:18.6]} 47... Qf5 {[%clk 0:00:45.2]} 48. g4 {[%clk 0:00:18.6]}
48... Qg6 {[%clk 0:00:42.5]} 49. Bd6 {[%clk 0:00:17.6]} 49... Bc2 {[%clk
0:00:37]} 50. Qe5 {[%clk 0:00:16.9]} 50... Qxg4 {[%clk 0:00:34.4]} 51. Ba3
{[%clk 0:00:15.8]} 51... Be4 {[%clk 0:00:33.7]} 52. Qg3 {[%clk 0:00:14]} 52...
Qxg3+ {[%clk 0:00:33.8]} 53. Kxg3 {[%clk 0:00:14.9]} 53... Kg6 {[%clk
0:00:33.3]} 54. Kf2 {[%clk 0:00:15.1]} 54... h5 {[%clk 0:00:31.8]} 55. g3 {[%clk
0:00:16]} 55... Kf5 {[%clk 0:00:31.7]} 56. Bb2 {[%clk 0:00:16.9]} 56... g6
{[%clk 0:00:31.8]} 57. Kg1 {[%clk 0:00:15.4]} 57... Ke6 {[%clk 0:00:29.9]} 58.
Kh2 {[%clk 0:00:15.8]} 58... Kd5 {[%clk 0:00:30.5]} 59. Kh3 {[%clk 0:00:16.2]}
59... Kc4 {[%clk 0:00:31]} 60. Kh4 {[%clk 0:00:16.6]} 60... Kb3 {[%clk
0:00:31.3]} 61. g4 {[%clk 0:00:17.5]} 61... Kxb2 {[%clk 0:00:30.5]} 62. gxh5
{[%clk 0:00:18.4]} 62... gxh5 {[%clk 0:00:30.9]} 63. Kxh5 {[%clk 0:00:19.3]}
63... a3 {[%clk 0:00:31.7]} 0-1

[Event "*** Titled Tuesday Blitz"]
[Site "Chess.com"]
[Date "2021.02.16"]
[Round "2"]
[White "besarquis"]
[Black "SergeyShtyka"]
[Result "0-1"]
[WhiteElo "2287"]
[BlackElo "2475"]
[TimeControl "180+1"]
[EndTime "10:19:41 PST"]
[Termination "SergeyShtyka won by resignation"]

1. e4 {[%clk 0:02:58.9]} 1... c5 {[%clk 0:03:00.9]} 2. Nf3 {[%clk 0:02:58.7]}
2... Nc6 {[%clk 0:03:01.2]} 3. Bb5 {[%clk 0:02:58.2]} 3... g6 {[%clk 0:03:00.4]}
4. Bxc6 {[%clk 0:02:55.4]} 4... dxc6 {[%clk 0:03:01.3]} 5. O-O {[%clk
0:02:52.9]} 5... Bg7 {[%clk 0:03:01.5]} 6. d3 {[%clk 0:02:52]} 6... e5 {[%clk
0:03:01.3]} 7. Nc3 {[%clk 0:02:51.8]} 7... Ne7 {[%clk 0:03:01.4]} 8. Be3 {[%clk
0:02:50.7]} 8... b6 {[%clk 0:03:01.2]} 9. h3 {[%clk 0:02:50]} 9... O-O {[%clk
0:03:00.8]} 10. Nh2 {[%clk 0:02:49.6]} 10... f5 {[%clk 0:02:59.9]} 11. f4 {[%clk
0:02:34.8]} 11... exf4 {[%clk 0:02:50.2]} 12. Rxf4 {[%clk 0:02:33.8]} 12... Bd4
{[%clk 0:02:34.6]} 13. Qe1 {[%clk 0:02:24.4]} 13... g5 {[%clk 0:02:25.9]} 14.
Rf1 {[%clk 0:02:19.8]} 14... f4 {[%clk 0:02:21.2]} 15. Bf2 {[%clk 0:02:12.8]}
15... f3 {[%clk 0:02:08.2]} 16. Nxf3 {[%clk 0:01:57.5]} 16... Rxf3 {[%clk
0:02:07.4]} 17. gxf3 {[%clk 0:01:50.6]} 17... Bxh3 {[%clk 0:02:06.4]} 18. Bxd4
{[%clk 0:01:48.5]} 18... cxd4 {[%clk 0:02:01.5]} 19. Ne2 {[%clk 0:01:39]} 19...
Bxf1 {[%clk 0:02:00.1]} 20. Qxf1 {[%clk 0:01:39]} 20... Ng6 {[%clk 0:01:57.2]}
21. Qh3 {[%clk 0:01:34.2]} 21... Qf6 {[%clk 0:01:50.5]} 22. Kf2 {[%clk
0:01:21.9]} 22... Rf8 {[%clk 0:01:48.1]} 23. Rg1 {[%clk 0:01:13.7]} 23... Kg7
{[%clk 0:01:25.9]} 24. Rg4 {[%clk 0:01:03.2]} 24... Ne5 {[%clk 0:01:18.3]} 25.
Rg3 {[%clk 0:00:51.7]} 25... h6 {[%clk 0:01:17.2]} 26. Ng1 {[%clk 0:00:39.6]}
26... Qf4 {[%clk 0:01:13.3]} 27. Qe6 {[%clk 0:00:26]} 27... Rf6 {[%clk
0:01:03.4]} 28. Qe7+ {[%clk 0:00:24.3]} 28... Rf7 {[%clk 0:01:03.6]} 29. Qe6
{[%clk 0:00:18.6]} 29... Qd2+ {[%clk 0:00:56.8]} 30. Ne2 {[%clk 0:00:16]} 30...
Qe3+ {[%clk 0:00:55.1]} 31. Ke1 {[%clk 0:00:13.4]} 31... Nxf3+ {[%clk
0:00:51.5]} 32. Rxf3 {[%clk 0:00:12]} 32... Rxf3 {[%clk 0:00:41.1]} 33. Qd7+
{[%clk 0:00:09.9]} 33... Rf7 {[%clk 0:00:33.5]} 34. Qe6 {[%clk 0:00:09.7]} 34...
c5 {[%clk 0:00:26.7]} 35. Qe5+ {[%clk 0:00:09.5]} 35... Kg6 {[%clk 0:00:25.1]}
36. Qe6+ {[%clk 0:00:09.8]} 36... Rf6 {[%clk 0:00:23.8]} 37. Qe8+ {[%clk
0:00:09.6]} 37... Kg7 {[%clk 0:00:23.3]} 38. Qe7+ {[%clk 0:00:09.8]} 38... Rf7
{[%clk 0:00:23.3]} 39. Qe5+ {[%clk 0:00:09.2]} 39... Kh7 {[%clk 0:00:23.4]} 40.
Qe6 {[%clk 0:00:08.6]} 40... Qf3 {[%clk 0:00:22.6]} 41. Qe5 {[%clk 0:00:07.6]}
41... Qf2+ {[%clk 0:00:22.1]} 42. Kd2 {[%clk 0:00:07.4]} 42... Qf6 {[%clk
0:00:22]} 43. Qb8 {[%clk 0:00:06.3]} 43... g4 {[%clk 0:00:20.2]} 44. e5 {[%clk
0:00:05.9]} 44... Qg5+ {[%clk 0:00:19.6]} 45. Kd1 {[%clk 0:00:05.4]} 45... Re7
{[%clk 0:00:18.7]} 46. Qd6 {[%clk 0:00:03.4]} 46... Qxe5 {[%clk 0:00:18.1]} 0-1

[Event "*** Titled Tuesday Blitz"]
[Site "Chess.com"]
[Date "2021.02.16"]
[Round "2"]
[White "Vamostodorecto"]
[Black "AntonovaNadezhda"]
[Result "1-0"]
[WhiteElo "2425"]
[BlackElo "2147"]
[TimeControl "180+1"]
[EndTime "10:19:42 PST"]
[Termination "Vamostodorecto won on time"]

1. d4 {[%clk 0:03:00.9]} 1... Nf6 {[%clk 0:02:51.1]} 2. c4 {[%clk 0:02:55.2]}
2... g6 {[%clk 0:02:51.5]} 3. Nc3 {[%clk 0:02:55.5]} 3... Bg7 {[%clk 0:02:51.6]}
4. e4 {[%clk 0:02:55]} 4... d6 {[%clk 0:02:52.2]} 5. Be2 {[%clk 0:02:55.2]} 5...
O-O {[%clk 0:02:52.6]} 6. Nf3 {[%clk 0:02:55.9]} 6... e5 {[%clk 0:02:52]} 7. O-O
{[%clk 0:02:56.2]} 7... Nc6 {[%clk 0:02:51.2]} 8. d5 {[%clk 0:02:56.8]} 8... Ne7
{[%clk 0:02:51.5]} 9. Ne1 {[%clk 0:02:57.5]} 9... Nd7 {[%clk 0:02:51.6]} 10. Be3
{[%clk 0:02:58.2]} 10... f5 {[%clk 0:02:51.2]} 11. f3 {[%clk 0:02:58.8]} 11...
f4 {[%clk 0:02:51.5]} 12. Bf2 {[%clk 0:02:59.1]} 12... g5 {[%clk 0:02:52]} 13.
Rc1 {[%clk 0:02:59.5]} 13... a6 {[%clk 0:02:47.7]} 14. Nd3 {[%clk 0:02:54.9]}
14... Rf6 {[%clk 0:02:46.6]} 15. c5 {[%clk 0:02:54.2]} 15... Rh6 {[%clk
0:02:46]} 16. cxd6 {[%clk 0:02:53.6]} 16... cxd6 {[%clk 0:02:45.3]} 17. Kh1
{[%clk 0:02:52.9]} 17... Qe8 {[%clk 0:02:44.4]} 18. Bg1 {[%clk 0:02:52.9]} 18...
Nf6 {[%clk 0:02:32.8]} 19. Na4 {[%clk 0:02:50.2]} 19... g4 {[%clk 0:02:23.5]}
20. Nb6 {[%clk 0:02:43.7]} 20... g3 {[%clk 0:02:08.2]} 21. h3 {[%clk 0:01:39.1]}
21... Bxh3 {[%clk 0:02:04.6]} 22. gxh3 {[%clk 0:01:40]} 22... Qh5 {[%clk
0:01:59.9]} 23. Nf2 {[%clk 0:01:32.1]} 23... gxf2 {[%clk 0:01:49.5]} 24. Rxf2
{[%clk 0:01:33]} 24... Rb8 {[%clk 0:01:18]} 25. Rc7 {[%clk 0:01:25.4]} 25... Ng6
{[%clk 0:01:08.1]} 26. Rh2 {[%clk 0:01:18.3]} 26... Qg5 {[%clk 0:00:54]} 27. Qc2
{[%clk 0:00:41.5]} 27... Nh5 {[%clk 0:00:51.8]} 28. Rc8+ {[%clk 0:00:39.2]}
28... Rxc8 {[%clk 0:00:51.9]} 29. Qxc8+ {[%clk 0:00:39.5]} 29... Nf8 {[%clk
0:00:51.8]} 30. Bf2 {[%clk 0:00:17.1]} 30... Ng3+ {[%clk 0:00:45.9]} 31. Bxg3
{[%clk 0:00:17.2]} 31... Qxg3 {[%clk 0:00:42.5]} 32. Qg4 {[%clk 0:00:12.8]}
32... Qe1+ {[%clk 0:00:40.6]} 33. Qg1 {[%clk 0:00:13]} 33... Qb4 {[%clk
0:00:27.3]} 34. Nc8 {[%clk 0:00:12.1]} 34... Kf7 {[%clk 0:00:23.1]} 35. Ne7
{[%clk 0:00:11]} 35... Ng6 {[%clk 0:00:18.7]} 36. Nf5 {[%clk 0:00:10.9]} 36...
Rh5 {[%clk 0:00:16.6]} 37. Qg4 {[%clk 0:00:09.3]} 37... Qe1+ {[%clk 0:00:11.2]}
38. Qg1 {[%clk 0:00:09.3]} 38... Qd2 {[%clk 0:00:10.2]} 39. Nxd6+ {[%clk
0:00:06.3]} 39... Ke7 {[%clk 0:00:08.9]} 40. Nf5+ {[%clk 0:00:07.2]} 40... Kf7
{[%clk 0:00:09]} 41. d6 {[%clk 0:00:06.1]} 41... Qxb2 {[%clk 0:00:07.8]} 42.
Bc4+ {[%clk 0:00:06.2]} 42... Kf8 {[%clk 0:00:06.2]} 43. Rxb2 {[%clk 0:00:06.8]}
43... Rxh3+ {[%clk 0:00:05.2]} 44. Rh2 {[%clk 0:00:06.9]} 44... Rxh2+ {[%clk
0:00:04.9]} 45. Qxh2 {[%clk 0:00:06.3]} 45... Bf6 {[%clk 0:00:05.8]} 46. Qxh7
{[%clk 0:00:06]} 1-0

[Event "*** Titled Tuesday Blitz"]
[Site "Chess.com"]
[Date "2021.02.16"]
[Round "2"]
[White "Vanina1989"]
[Black "Sergey85Rodchenkov"]
[Result "1/2-1/2"]
[WhiteElo "2730"]
[BlackElo "2495"]
[TimeControl "180+1"]
[EndTime "10:19:43 PST"]
[Termination "Game drawn by agreement"]

1. d4 {[%clk 0:03:00.9]} 1... Nf6 {[%clk 0:02:58.4]} 2. c4 {[%clk 0:03:01.2]}
2... e6 {[%clk 0:02:58.5]} 3. Nf3 {[%clk 0:03:01.1]} 3... b6 {[%clk 0:02:58.1]}
4. Bf4 {[%clk 0:03:01.2]} 4... Bb7 {[%clk 0:02:58.1]} 5. e3 {[%clk 0:03:01.7]}
5... Bb4+ {[%clk 0:02:49.5]} 6. Nfd2 {[%clk 0:03:00.6]} 6... O-O {[%clk
0:02:47.7]} 7. a3 {[%clk 0:03:00.8]} 7... Bd6 {[%clk 0:02:47.1]} 8. Bxd6 {[%clk
0:02:59.6]} 8... cxd6 {[%clk 0:02:47]} 9. Bd3 {[%clk 0:03:00]} 9... d5 {[%clk
0:02:46.8]} 10. Nc3 {[%clk 0:02:59.2]} 10... dxc4 {[%clk 0:02:46.2]} 11. Nxc4
{[%clk 0:02:59.5]} 11... d5 {[%clk 0:02:38.9]} 12. Ne5 {[%clk 0:02:52.5]} 12...
Nbd7 {[%clk 0:02:38.8]} 13. f4 {[%clk 0:02:52.8]} 13... Ne4 {[%clk 0:02:37.6]}
14. Bxe4 {[%clk 0:02:49.2]} 14... dxe4 {[%clk 0:02:37.3]} 15. O-O {[%clk
0:02:49.5]} 15... f6 {[%clk 0:02:32.7]} 16. Ng4 {[%clk 0:02:26.1]} 16... f5
{[%clk 0:02:29.6]} 17. Ne5 {[%clk 0:02:24.7]} 17... Nxe5 {[%clk 0:02:29.7]} 18.
dxe5 {[%clk 0:02:22.7]} 18... Ba6 {[%clk 0:02:20.5]} 19. Re1 {[%clk 0:02:12.4]}
19... Qxd1 {[%clk 0:02:19.1]} 20. Raxd1 {[%clk 0:02:11.7]} 20... Rfd8 {[%clk
0:02:17.7]} 21. Kf2 {[%clk 0:02:02]} 21... Kf7 {[%clk 0:02:16.9]} 22. Rd4 {[%clk
0:01:57.3]} 22... Bd3 {[%clk 0:02:11.2]} 23. Rc1 {[%clk 0:01:51.3]} 23... Ke7
{[%clk 0:02:08.4]} 24. Rxd8 {[%clk 0:01:44.7]} 24... Rxd8 {[%clk 0:01:54.3]} 25.
Na2 {[%clk 0:01:11.1]} 25... Kd7 {[%clk 0:01:44.6]} 26. Nb4 {[%clk 0:01:07.1]}
26... Bb5 {[%clk 0:01:38.5]} 27. Rd1+ {[%clk 0:00:53.3]} 27... Kc7 {[%clk
0:01:36.6]} 28. Rxd8 {[%clk 0:00:53.2]} 28... Kxd8 {[%clk 0:01:36.9]} 29. Nc2
{[%clk 0:00:53.5]} 29... Kc7 {[%clk 0:01:30.4]} 30. Nd4 {[%clk 0:00:53.5]} 30...
Bc4 {[%clk 0:01:30.8]} 31. Kg3 {[%clk 0:00:43.2]} 31... Kd7 {[%clk 0:01:18.3]}
32. Kh4 {[%clk 0:00:42.6]} 32... a6 {[%clk 0:01:12.2]} 33. g4 {[%clk 0:00:33.4]}
33... fxg4 {[%clk 0:01:05.7]} 34. Kxg4 {[%clk 0:00:33.7]} 34... Bd5 {[%clk
0:01:03.5]} 35. Kg5 {[%clk 0:00:32.3]} 35... Ke7 {[%clk 0:01:03]} 36. h4 {[%clk
0:00:29.6]} 36... Kf7 {[%clk 0:01:01.3]} 37. f5 {[%clk 0:00:30.1]} 37... exf5
{[%clk 0:00:42.9]} 38. Kxf5 {[%clk 0:00:30]} 38... g6+ {[%clk 0:00:41.9]} 39.
Kg5 {[%clk 0:00:30.3]} 39... Kg7 {[%clk 0:00:39.6]} 40. Ne2 {[%clk 0:00:23.5]}
40... h6+ {[%clk 0:00:39.4]} 41. Kf4 {[%clk 0:00:23.7]} 41... Kf7 {[%clk
0:00:38.4]} 42. Nd4 {[%clk 0:00:19.8]} 42... Ke7 {[%clk 0:00:34.1]} 43. Ne2
{[%clk 0:00:18.2]} 43... Ke6 {[%clk 0:00:31.6]} 44. Nd4+ {[%clk 0:00:17.9]}
44... Ke7 {[%clk 0:00:31.3]} 45. b4 {[%clk 0:00:18.2]} 45... a5 {[%clk
0:00:29.5]} 46. Nb5 {[%clk 0:00:17.4]} 46... axb4 {[%clk 0:00:28.9]} 47. axb4
{[%clk 0:00:17.8]} 47... Bc6 {[%clk 0:00:27.5]} 48. Nd6 {[%clk 0:00:17.8]} 48...
Ke6 {[%clk 0:00:26.4]} 49. Nc4 {[%clk 0:00:18.2]} 49... b5 {[%clk 0:00:22.7]}
50. Nd6 {[%clk 0:00:17.1]} 50... g5+ {[%clk 0:00:22.1]} 51. hxg5 {[%clk
0:00:17.3]} 51... hxg5+ {[%clk 0:00:22.5]} 52. Kxg5 {[%clk 0:00:17.8]} 52...
Kxe5 {[%clk 0:00:23]} 53. Nf5 {[%clk 0:00:18.3]} 53... Bd7 {[%clk 0:00:20.4]}
54. Nd4 {[%clk 0:00:18.4]} 54... Kd5 {[%clk 0:00:20.8]} 55. Kf4 {[%clk
0:00:18.6]} 55... Kc4 {[%clk 0:00:21.2]} 56. Kxe4 {[%clk 0:00:18.7]} 56... Kxb4
{[%clk 0:00:21.9]} 57. Kd5 {[%clk 0:00:18.6]} 57... Kc3 {[%clk 0:00:21.7]} 58.
Nxb5+ {[%clk 0:00:18.3]} 58... Bxb5 {[%clk 0:00:21.2]} 59. e4 {[%clk 0:00:17.7]}
1/2-1/2